Workbook

Sheet بيان الربح والخسارة
B1: بيان الربح والخسارة
D3: الفترة السابقة | E3: الميزانية | F3: الفترة الحالية | H3: الفترة الحالية كنسبة المبيعات | I3: نسبة التغيير من الفترة السابقة | J3: نسبة التغيير من الميزانية
B4: عائد المبيعات
B5: المنتج/الخدمة 1 | D5: 40 | E5: 50 | F5: 45 | H5: =IFERROR(SalesRevenue[[#This Row],[Current Period]]/SUBTOTAL(109,SalesRevenue[Current Period]),0) -> 100.0% | I5: =IFERROR(SalesRevenue[[#This Row],[Current Period]]/SalesRevenue[[#This Row],[Prior Period]]-1,0) -> 12.5% | J5: =IFERROR(SalesRevenue[[#This Row],[Current Period]]/SalesRevenue[[#This Row],[Budget]]-1,0) -> -10.0%
B6: المنتج/الخدمة 2 | H6: =IFERROR(SalesRevenue[[#This Row],[Current Period]]/SUBTOTAL(109,SalesRevenue[Current Period]),0) -> 0 | I6: =IFERROR(SalesRevenue[[#This Row],[Current Period]]/SalesRevenue[[#This Row],[Prior Period]]-1,0) -> 0 | J6: =IFERROR(SalesRevenue[[#This Row],[Current Period]]/SalesRevenue[[#This Row],[Budget]]-1,0) -> 0
B7: المنتج/الخدمة 3 | H7: =IFERROR(SalesRevenue[[#This Row],[Current Period]]/SUBTOTAL(109,SalesRevenue[Current Period]),0) -> 0 | I7: =IFERROR(SalesRevenue[[#This Row],[Current Period]]/SalesRevenue[[#This Row],[Prior Period]]-1,0) -> 0 | J7: =IFERROR(SalesRevenue[[#This Row],[Current Period]]/SalesRevenue[[#This Row],[Budget]]-1,0) -> 0
B8: المنتج/الخدمة 4 | H8: =IFERROR(SalesRevenue[[#This Row],[Current Period]]/SUBTOTAL(109,SalesRevenue[Current Period]),0) -> 0 | I8: =IFERROR(SalesRevenue[[#This Row],[Current Period]]/SalesRevenue[[#This Row],[Prior Period]]-1,0) -> 0 | J8: =IFERROR(SalesRevenue[[#This Row],[Current Period]]/SalesRevenue[[#This Row],[Budget]]-1,0) -> 0
B9: الإجمالي | D9: =SUBTOTAL(109,SalesRevenue[Prior Period]) -> 40 | E9: =SUBTOTAL(109,SalesRevenue[Budget]) -> 50 | F9: =SUBTOTAL(109,SalesRevenue[Current Period]) -> 45 | H9: =IFERROR(SalesRevenue[[#Totals],[Current Period]]/SalesRevenue[[#Totals],[Current Period]],0) -> 100.0% | I9: =IFERROR(SalesRevenue[[#Totals],[Current Period]]/SalesRevenue[[#Totals],[Prior Period]]-1,0) -> 12.5% | J9: =IFERROR(SalesRevenue[[#Totals],[Current Period]]/SalesRevenue[[#Totals],[Budget]]-1,0) -> -10.0%
B11: تكلفة المبيعات
B12: المنتج/الخدمة 1 | E12: 2 | F12: 3 | H12: =IFERROR(CostOfSales[[#This Row],[Current Period]]/SUBTOTAL(109,SalesRevenue[Current Period]),0) -> 6.7% | I12: =IFERROR(CostOfSales[[#This Row],[Current Period]]/CostOfSales[[#This Row],[Prior Period]]-1,0) -> 0 | J12: =IFERROR(CostOfSales[[#This Row],[Current Period]]/CostOfSales[[#This Row],[Budget]]-1,0) -> 50.0%
B13: المنتج/الخدمة 2 | E13: 5 | F13: 3 | H13: =IFERROR(CostOfSales[[#This Row],[Current Period]]/SUBTOTAL(109,SalesRevenue[Current Period]),0) -> 6.7% | I13: =IFERROR(CostOfSales[[#This Row],[Current Period]]/CostOfSales[[#This Row],[Prior Period]]-1,0) -> 0 | J13: =IFERROR(CostOfSales[[#This Row],[Current Period]]/CostOfSales[[#This Row],[Budget]]-1,0) -> -40.0%
B14: المنتج/الخدمة 3 | F14: 1 | H14: =IFERROR(CostOfSales[[#This Row],[Current Period]]/SUBTOTAL(109,SalesRevenue[Current Period]),0) -> 2.2% | I14: =IFERROR(CostOfSales[[#This Row],[Current Period]]/CostOfSales[[#This Row],[Prior Period]]-1,0) -> 0 | J14: =IFERROR(CostOfSales[[#This Row],[Current Period]]/CostOfSales[[#This Row],[Budget]]-1,0) -> 0
B15: المنتج/الخدمة 4 | H15: =IFERROR(CostOfSales[[#This Row],[Current Period]]/SUBTOTAL(109,SalesRevenue[Current Period]),0) -> 0 | I15: =IFERROR(CostOfSales[[#This Row],[Current Period]]/CostOfSales[[#This Row],[Prior Period]]-1,0) -> 0 | J15: =IFERROR(CostOfSales[[#This Row],[Current Period]]/CostOfSales[[#This Row],[Budget]]-1,0) -> 0
B16: الإجمالي | D16: =SUBTOTAL(109,CostOfSales[Prior Period]) -> 0 | E16: =SUBTOTAL(109,CostOfSales[Budget]) -> 7 | F16: =SUBTOTAL(109,CostOfSales[Current Period]) -> 7 | H16: =IFERROR(CostOfSales[[#Totals],[Current Period]]/SUBTOTAL(109,SalesRevenue[Current Period]),0) -> 15.6% | I16: =IFERROR(CostOfSales[[#Totals],[Current Period]]/CostOfSales[[#Totals],[Prior Period]]-1,0) -> 0 | J16: =IFERROR(CostOfSales[[#Totals],[Current Period]]/CostOfSales[[#Totals],[Budget]]-1,0) -> 0
B18: إجمالي الربح | D18: =SUM(SalesRevenue[Prior Period])-SUM(CostOfSales[Prior Period]) -> 40 | E18: =SUM(SalesRevenue[Budget])-SUM(CostOfSales[Budget]) -> 43 | F18: =SUM(SalesRevenue[Current Period])-SUM(CostOfSales[Current Period]) -> 38 | H18: =IFERROR(F18/SUBTOTAL(109,SalesRevenue[Current Period]),0) -> 84.4% | I18: =IFERROR(F18/D18-1,0) -> -5.0% | J18: =IFERROR(F18/E18-1,0) -> -11.6%
B20: مصاريف التشغيل: المبيعات والتسوق
B21: الإعلانات | E21: 22 | F21: 19 | H21: =IFERROR(SalesAndMarketing[[#This Row],[Current Period]]/SUBTOTAL(109,SalesRevenue[Current Period]),0) -> 42.2% | I21: =IFERROR(SalesAndMarketing[[#This Row],[Current Period]]/SalesAndMarketing[[#This Row],[Prior Period]]-1,0) -> 0 | J21: =IFERROR(SalesAndMarketing[[#This Row],[Current Period]]/SalesAndMarketing[[#This Row],[Budget]]-1,0) -> -13.6%
B22: التسويق المباشر | H22: =IFERROR(SalesAndMarketing[[#This Row],[Current Period]]/SUBTOTAL(109,SalesRevenue[Current Period]),0) -> 0 | I22: =IFERROR(SalesAndMarketing[[#This Row],[Current Period]]/SalesAndMarketing[[#This Row],[Prior Period]]-1,0) -> 0 | J22: =IFERROR(SalesAndMarketing[[#This Row],[Current Period]]/SalesAndMarketing[[#This Row],[Budget]]-1,0) -> 0
B23: المصاريف الأخرى (تحديد) | H23: =IFERROR(SalesAndMarketing[[#This Row],[Current Period]]/SUBTOTAL(109,SalesRevenue[Current Period]),0) -> 0 | I23: =IFERROR(SalesAndMarketing[[#This Row],[Current Period]]/SalesAndMarketing[[#This Row],[Prior Period]]-1,0) -> 0 | J23: =IFERROR(SalesAndMarketing[[#This Row],[Current Period]]/SalesAndMarketing[[#This Row],[Budget]]-1,0) -> 0
B24: الإجمالي | D24: =SUBTOTAL(109,SalesAndMarketing[Prior Period]) -> 0 | E24: =SUBTOTAL(109,SalesAndMarketing[Budget]) -> 22 | F24: =SUBTOTAL(109,SalesAndMarketing[Current Period]) -> 19 | H24: =IFERROR(SalesAndMarketing[[#Totals],[Current Period]]/SUBTOTAL(109,SalesRevenue[Current Period]),0) -> 42.2% | I24: =IFERROR(SalesAndMarketing[[#Totals],[Current Period]]/SalesAndMarketing[[#Totals],[Prior Period]]-1,0) -> 0 | J24: =IFERROR(SalesAndMarketing[[#Totals],[Current Period]]/SalesAndMarketing[[#Totals],[Budget]]-1,0) -> -13.6%
B26: مصاريف التشغيل: العامة والإدارية
B27: الأجور والمرتبات | E27: 56 | F27: 51 | H27: =IFERROR(GeneralAndAdministrative[[#This Row],[Current Period]]/SUBTOTAL(109,SalesRevenue[Current Period]),0) -> 113.3% | I27: =IFERROR(GeneralAndAdministrative[[#This Row],[Current Period]]/GeneralAndAdministrative[[#This Row],[Prior Period]]-1,0) -> 0 | J27: =IFERROR(GeneralAndAdministrative[[#This Row],[Current Period]]/GeneralAndAdministrative[[#This Row],[Budget]]-1,0) -> -8.9%
B28: الخدمات الخارجية | H28: =IFERROR(GeneralAndAdministrative[[#This Row],[Current Period]]/SUBTOTAL(109,SalesRevenue[Current Period]),0) -> 0 | I28: =IFERROR(GeneralAndAdministrative[[#This Row],[Current Period]]/GeneralAndAdministrative[[#This Row],[Prior Period]]-1,0) -> 0 | J28: =IFERROR(GeneralAndAdministrative[[#This Row],[Current Period]]/GeneralAndAdministrative[[#This Row],[Budget]]-1,0) -> 0
B29: التجهيزات | H29: =IFERROR(GeneralAndAdministrative[[#This Row],[Current Period]]/SUBTOTAL(109,SalesRevenue[Current Period]),0) -> 0 | I29: =IFERROR(GeneralAndAdministrative[[#This Row],[Current Period]]/GeneralAndAdministrative[[#This Row],[Prior Period]]-1,0) -> 0 | J29: =IFERROR(GeneralAndAdministrative[[#This Row],[Current Period]]/GeneralAndAdministrative[[#This Row],[Budget]]-1,0) -> 0
B30: الوجبات والتسلية | H30: =IFERROR(GeneralAndAdministrative[[#This Row],[Current Period]]/SUBTOTAL(109,SalesRevenue[Current Period]),0) -> 0 | I30: =IFERROR(GeneralAndAdministrative[[#This Row],[Current Period]]/GeneralAndAdministrative[[#This Row],[Prior Period]]-1,0) -> 0 | J30: =IFERROR(GeneralAndAdministrative[[#This Row],[Current Period]]/GeneralAndAdministrative[[#This Row],[Budget]]-1,0) -> 0
B31: الإيجار | H31: =IFERROR(GeneralAndAdministrative[[#This Row],[Current Period]]/SUBTOTAL(109,SalesRevenue[Current Period]),0) -> 0 | I31: =IFERROR(GeneralAndAdministrative[[#This Row],[Current Period]]/GeneralAndAdministrative[[#This Row],[Prior Period]]-1,0) -> 0 | J31: =IFERROR(GeneralAndAdministrative[[#This Row],[Current Period]]/GeneralAndAdministrative[[#This Row],[Budget]]-1,0) -> 0
B32: الهاتف | H32: =IFERROR(GeneralAndAdministrative[[#This Row],[Current Period]]/SUBTOTAL(109,SalesRevenue[Current Period]),0) -> 0 | I32: =IFERROR(GeneralAndAdministrative[[#This Row],[Current Period]]/GeneralAndAdministrative[[#This Row],[Prior Period]]-1,0) -> 0 | J32: =IFERROR(GeneralAndAdministrative[[#This Row],[Current Period]]/GeneralAndAdministrative[[#This Row],[Budget]]-1,0) -> 0
B33: الأدوات المساعدة | H33: =IFERROR(GeneralAndAdministrative[[#This Row],[Current Period]]/SUBTOTAL(109,SalesRevenue[Current Period]),0) -> 0 | I33: =IFERROR(GeneralAndAdministrative[[#This Row],[Current Period]]/GeneralAndAdministrative[[#This Row],[Prior Period]]-1,0) -> 0 | J33: =IFERROR(GeneralAndAdministrative[[#This Row],[Current Period]]/GeneralAndAdministrative[[#This Row],[Budget]]-1,0) -> 0
B34: الإهلاك | H34: =IFERROR(GeneralAndAdministrative[[#This Row],[Current Period]]/SUBTOTAL(109,SalesRevenue[Current Period]),0) -> 0 | I34: =IFERROR(GeneralAndAdministrative[[#This Row],[Current Period]]/GeneralAndAdministrative[[#This Row],[Prior Period]]-1,0) -> 0 | J34: =IFERROR(GeneralAndAdministrative[[#This Row],[Current Period]]/GeneralAndAdministrative[[#This Row],[Budget]]-1,0) -> 0
B35: التأمين | H35: =IFERROR(GeneralAndAdministrative[[#This Row],[Current Period]]/SUBTOTAL(109,SalesRevenue[Current Period]),0) -> 0 | I35: =IFERROR(GeneralAndAdministrative[[#This Row],[Current Period]]/GeneralAndAdministrative[[#This Row],[Prior Period]]-1,0) -> 0 | J35: =IFERROR(GeneralAndAdministrative[[#This Row],[Current Period]]/GeneralAndAdministrative[[#This Row],[Budget]]-1,0) -> 0
B36: الإصلاح والصيانة | H36: =IFERROR(GeneralAndAdministrative[[#This Row],[Current Period]]/SUBTOTAL(109,SalesRevenue[Current Period]),0) -> 0 | I36: =IFERROR(GeneralAndAdministrative[[#This Row],[Current Period]]/GeneralAndAdministrative[[#This Row],[Prior Period]]-1,0) -> 0 | J36: =IFERROR(GeneralAndAdministrative[[#This Row],[Current Period]]/GeneralAndAdministrative[[#This Row],[Budget]]-1,0) -> 0
B37: المصاريف الأخرى (تحديد) | H37: =IFERROR(GeneralAndAdministrative[[#This Row],[Current Period]]/SUBTOTAL(109,SalesRevenue[Current Period]),0) -> 0 | I37: =IFERROR(GeneralAndAdministrative[[#This Row],[Current Period]]/GeneralAndAdministrative[[#This Row],[Prior Period]]-1,0) -> 0 | J37: =IFERROR(GeneralAndAdministrative[[#This Row],[Current Period]]/GeneralAndAdministrative[[#This Row],[Budget]]-1,0) -> 0
B38: الإجمالي | D38: =SUBTOTAL(109,GeneralAndAdministrative[Prior Period]) -> 0 | E38: =SUBTOTAL(109,GeneralAndAdministrative[Budget]) -> 56 | F38: =SUBTOTAL(109,GeneralAndAdministrative[Current Period]) -> 51 | H38: =IFERROR(GeneralAndAdministrative[[#Totals],[Current Period]]/SUBTOTAL(109,SalesRevenue[Current Period]),0) -> 113.3% | I38: =IFERROR(GeneralAndAdministrative[[#Totals],[Current Period]]/GeneralAndAdministrative[[#Totals],[Prior Period]]-1,0) -> 0 | J38: =IFERROR(GeneralAndAdministrative[[#Totals],[Current Period]]/GeneralAndAdministrative[[#Totals],[Budget]]-1,0) -> -8.9%
B40: مصاريف التشغيل: غير ذلك
B41: مصاريف التشغيل الأخرى 1 | E41: 10 | H41: =IFERROR(OtherOperatingExpenseCategory[[#This Row],[Current Period]]/SUBTOTAL(109,SalesRevenue[Current Period]),0) -> 0 | I41: =IFERROR(OtherOperatingExpenseCategory[[#This Row],[Current Period]]/OtherOperatingExpenseCategory[[#This Row],[Prior Period]]-1,0) -> 0 | J41: =IFERROR(OtherOperatingExpenseCategory[[#This Row],[Current Period]]/OtherOperatingExpenseCategory[[#This Row],[Budget]]-1,0) -> -100.0%
B42: مصاريف التشغيل الأخرى 2 | H42: =IFERROR(OtherOperatingExpenseCategory[[#This Row],[Current Period]]/SUBTOTAL(109,SalesRevenue[Current Period]),0) -> 0 | I42: =IFERROR(OtherOperatingExpenseCategory[[#This Row],[Current Period]]/OtherOperatingExpenseCategory[[#This Row],[Prior Period]]-1,0) -> 0 | J42: =IFERROR(OtherOperatingExpenseCategory[[#This Row],[Current Period]]/OtherOperatingExpenseCategory[[#This Row],[Budget]]-1,0) -> 0
B43: الإجمالي | D43: =SUBTOTAL(109,OtherOperatingExpenseCategory[Prior Period]) -> 0 | E43: =SUBTOTAL(109,OtherOperatingExpenseCategory[Budget]) -> 10 | F43: =SUBTOTAL(109,OtherOperatingExpenseCategory[Current Period]) -> 0 | H43: =IFERROR(OtherOperatingExpenseCategory[[#Totals],[Current Period]]/SUBTOTAL(109,SalesRevenue[Current Period]),0) -> 0 | I43: =IFERROR(OtherOperatingExpenseCategory[[#Totals],[Current Period]]/OtherOperatingExpenseCategory[[#Totals],[Prior Period]]-1,0) -> 0 | J43: =IFERROR(OtherOperatingExpenseCategory[[#Totals],[Current Period]]/OtherOperatingExpenseCategory[[#Totals],[Budget]]-1,0) -> -100.0%
B45: إجمالي مصاريف التشغيل | D45: =SUM(SalesAndMarketing[Prior Period],GeneralAndAdministrative[Prior Period],OtherOperatingExpenseCategory[Prior Period]) -> 0 | E45: =SUM(SalesAndMarketing[Budget],GeneralAndAdministrative[Budget],OtherOperatingExpenseCategory[Budget]) -> 88 | F45: =SUM(SalesAndMarketing[Current Period],GeneralAndAdministrative[Current Period],OtherOperatingExpenseCategory[Current Period]) -> 70 | H45: =IFERROR(F45/SUBTOTAL(109,SalesRevenue[Current Period]),0) -> 155.6% | I45: =IFERROR(F45/D45-1,0) -> 0 | J45: =IFERROR(F45/E45-1,0) -> -20.5%
B47: الدخل من العمليات | D47: =D18-D45 -> 40 | E47: =E18-E45 -> -45 | F47: =F18-F45 -> -32 | H47: =IFERROR(F47/SUBTOTAL(109,SalesRevenue[Current Period]),0) -> -71.1% | I47: =IFERROR(IF(D47=F47,0,IF(F47>D47,ABS((F47/D47)-1),IF(AND(F47<D47,D47<0),-((F47/D47)-1),(F47/D47)-1))),0) -> -180.0% | J47: =IFERROR(IF(E47=F47,0,IF(F47>E47,ABS((F47/E47)-1),IF(AND(F47<E47,E47<0),-((F47/E47)-1),(F47/E47)-1))),0) -> 28.9%
B49: دخل آخر | H49: =IFERROR(F49/SUBTOTAL(109,SalesRevenue[Current Period]),0) -> 0 | I49: =IFERROR(F49/D49-1,0) -> 0 | J49: =IFERROR(F49/E49-1,0) -> 0
B51: الضرائب
B52: ضرائب الدخل | E52: 32 | F52: 30 | H52: =IFERROR(Taxes[[#This Row],[Current Period]]/SUBTOTAL(109,SalesRevenue[Current Period]),0) -> 66.7% | I52: =IFERROR(Taxes[[#This Row],[Current Period]]/Taxes[[#This Row],[Prior Period]]-1,0) -> 0 | J52: =IFERROR(Taxes[[#This Row],[Current Period]]/Taxes[[#This Row],[Budget]]-1,0) -> -6.3%
B53: ضرائب كشف المرتبات | H53: =IFERROR(Taxes[[#This Row],[Current Period]]/SUBTOTAL(109,SalesRevenue[Current Period]),0) -> 0 | I53: =IFERROR(Taxes[[#This Row],[Current Period]]/Taxes[[#This Row],[Prior Period]]-1,0) -> 0 | J53: =IFERROR(Taxes[[#This Row],[Current Period]]/Taxes[[#This Row],[Budget]]-1,0) -> 0
B54: الضرائب العقارية | H54: =IFERROR(Taxes[[#This Row],[Current Period]]/SUBTOTAL(109,SalesRevenue[Current Period]),0) -> 0 | I54: =IFERROR(Taxes[[#This Row],[Current Period]]/Taxes[[#This Row],[Prior Period]]-1,0) -> 0 | J54: =IFERROR(Taxes[[#This Row],[Current Period]]/Taxes[[#This Row],[Budget]]-1,0) -> 0
B55: الضرائب الأخرى (تحديد) | H55: =IFERROR(Taxes[[#This Row],[Current Period]]/SUBTOTAL(109,SalesRevenue[Current Period]),0) -> 0 | I55: =IFERROR(Taxes[[#This Row],[Current Period]]/Taxes[[#This Row],[Prior Period]]-1,0) -> 0 | J55: =IFERROR(Taxes[[#This Row],[Current Period]]/Taxes[[#This Row],[Budget]]-1,0) -> 0
B56: الإجمالي | D56: =SUBTOTAL(109,Taxes[Prior Period]) -> 0 | E56: =SUBTOTAL(109,Taxes[Budget]) -> 32 | F56: =SUBTOTAL(109,Taxes[Current Period]) -> 30 | H56: =IFERROR(Taxes[[#Totals],[Current Period]]/SUBTOTAL(109,SalesRevenue[Current Period]),0) -> 66.7% | I56: =IFERROR(Taxes[[#Totals],[Current Period]]/Taxes[[#Totals],[Prior Period]]-1,0) -> 0.0% | J56: =IFERROR(Taxes[[#Totals],[Current Period]]/Taxes[[#Totals],[Budget]]-1,0) -> -6.3%
B58: صافي الربح | D58: =D47+D49-Taxes[[#Totals],[Prior Period]] -> 40 | E58: =E47+E49-Taxes[[#Totals],[Prior Period]] -> -45 | F58: =F47+F49-Taxes[[#Totals],[Prior Period]] -> -32 | H58: =IFERROR(F58/SUBTOTAL(109,SalesRevenue[Current Period]),0) -> -71.1% | I58: =IFERROR(IF(D58=F58,0,IF(F58>D58,ABS((F58/D58)-1),IF(AND(F58<D58,D58<0),-((F58/D58)-1),(F58/D58)-1))),0) -> -180.0% | J58: =IFERROR(IF(E58=F58,0,IF(F58>E58,ABS((F58/E58)-1),IF(AND(F58<E58,E58<0),-((F58/E58)-1),(F58/E58)-1))),0) -> 28.9%
B59: إجمالي هامش الربح | D59: =D18/SUM(SalesRevenue[Prior Period]) -> 100.0% | E59: =E18/SUM(SalesRevenue[Budget]) -> 86.0% | F59: =F18/SUM(SalesRevenue[Current Period]) -> 84.4%
B60: العائد على المبيعات | D60: =D58/SUM(SalesRevenue[Prior Period]) -> 100.0% | E60: =E58/SUM(SalesRevenue[Budget]) -> -90.0% | F60: =F58/SUM(SalesRevenue[Current Period]) -> -71.1%
